Workbook

Sheet Startside

Sheet Fordeling
B2: Udfyld felter
B4: Samlede finansieringsomkostninger i 2025 | C4: =Renteomkostninger!C4 -> 0 | E4: Kontrol af manuel fordeling
B5: heraf engangsomkostninger | C5: =Renteomkostninger!C5 -> 0 | E5: Samlede finansieringsomk. | G5: =IF($C$8="Manuel", IF(ABS(SUM(F$15:F64)-C4)<1,"Afstemt","Der er manuelt fordelt ") &IF(ABS(SUM(F$15:F64)-C4)<1,"",ABS(SUM(F$15:F64)-C4)) &IF(ABS(SUM(F$15:F64)-C4)<1,"",IF((SUM(F$15:F64)-C4)<0," kr. for lidt"," kr. for meget")),"") -> 
B6: Samlede restgæld på lån | C6: =Renteomkostninger!C7 -> 0 | E6: Samlede engangsomk. | G6: =IF($C$8="Manuel", IF(ABS(SUM(G$15:G64)-C5)<1,"Afstemt","Der er manuelt fordelt ") &IF(ABS(SUM(G$15:G64)-C5)<1,"",ABS(SUM(G$15:G64)-C5)) &IF(ABS(SUM(G$15:G64)-C5)<1,"",IF((SUM(G$15:G64)-C5)<0," kr. for lidt"," kr. for meget")),"") -> 
B8: Vælg fordelingsmetode (beregnet/manuel) | C8: Beregnet | E8: Kontrol af restgæld
B9: Nedskalér finansieringsomk. (Ja/Nej) | C9: Nej | E9: Restgæld og anskaffelsespris | G9: =IF(SUM(Tabel2[Anskaffelsespris])-C6>=0,"Afstemt","Restgælden overstiger anskaffelsessum") -> Afstemt
B10: Nedskaleret finansieringsomkostninger | C10: =IFERROR(IF($C$9="Ja",MIN(1,SUM(Tabel2[Anskaffelsespris])/$C$6)*C4,C4),"") -> 0 | E10: Evt. bemærkning
B11: heraf engangsomkostninger | C11: =IFERROR(IF($C$9="Ja",MIN(1,SUM(Tabel2[Anskaffelsespris])/$C$6)*C5,C5),"") -> 0
D13: Beregnet fordeling | F13: Manuel
B14: Tillægstitel | C14: Anskaffelsespris | D14: Finansierings-omkostninger | E14: Heraf engangs-omkostninger | F14: Finansieringsomkostninger | G14: Heraf engangs-omkostninger | H14: Evt. bemærkning (valgfrit)
D15: =IFERROR(IF($C$8="Manuel","",IF($C$9="Ja",$C$10,$C$4)*Tabel2[[#This Row],[Anskaffelsespris]]/SUM(Tabel2[Anskaffelsespris])),"") ->  | E15: =IFERROR(IF($C$8="Manuel","",IF($C$9="Ja",$C$11,$C$5)*Tabel2[[#This Row],[Anskaffelsespris]]/SUM(Tabel2[Anskaffelsespris])),"") -> 
D16: =IFERROR(IF($C$8="Manuel","",IF($C$9="Ja",$C$10,$C$4)*Tabel2[[#This Row],[Anskaffelsespris]]/SUM(Tabel2[Anskaffelsespris])),"") ->  | E16: =IFERROR(IF($C$8="Manuel","",IF($C$9="Ja",$C$11,$C$5)*Tabel2[[#This Row],[Anskaffelsespris]]/SUM(Tabel2[Anskaffelsespris])),"") -> 
D17: =IFERROR(IF($C$8="Manuel","",IF($C$9="Ja",$C$10,$C$4)*Tabel2[[#This Row],[Anskaffelsespris]]/SUM(Tabel2[Anskaffelsespris])),"") ->  | E17: =IFERROR(IF($C$8="Manuel","",IF($C$9="Ja",$C$11,$C$5)*Tabel2[[#This Row],[Anskaffelsespris]]/SUM(Tabel2[Anskaffelsespris])),"") -> 
D18: =IFERROR(IF($C$8="Manuel","",IF($C$9="Ja",$C$10,$C$4)*Tabel2[[#This Row],[Anskaffelsespris]]/SUM(Tabel2[Anskaffelsespris])),"") ->  | E18: =IFERROR(IF($C$8="Manuel","",IF($C$9="Ja",$C$11,$C$5)*Tabel2[[#This Row],[Anskaffelsespris]]/SUM(Tabel2[Anskaffelsespris])),"") -> 
D19: =IFERROR(IF($C$8="Manuel","",IF($C$9="Ja",$C$10,$C$4)*Tabel2[[#This Row],[Anskaffelsespris]]/SUM(Tabel2[Anskaffelsespris])),"") ->  | E19: =IFERROR(IF($C$8="Manuel","",IF($C$9="Ja",$C$11,$C$5)*Tabel2[[#This Row],[Anskaffelsespris]]/SUM(Tabel2[Anskaffelsespris])),"") -> 
D20: =IFERROR(IF($C$8="Manuel","",IF($C$9="Ja",$C$10,$C$4)*Tabel2[[#This Row],[Anskaffelsespris]]/SUM(Tabel2[Anskaffelsespris])),"") ->  | E20: =IFERROR(IF($C$8="Manuel","",IF($C$9="Ja",$C$11,$C$5)*Tabel2[[#This Row],[Anskaffelsespris]]/SUM(Tabel2[Anskaffelsespris])),"") -> 
D21: =IFERROR(IF($C$8="Manuel","",IF($C$9="Ja",$C$10,$C$4)*Tabel2[[#This Row],[Anskaffelsespris]]/SUM(Tabel2[Anskaffelsespris])),"") ->  | E21: =IFERROR(IF($C$8="Manuel","",IF($C$9="Ja",$C$11,$C$5)*Tabel2[[#This Row],[Anskaffelsespris]]/SUM(Tabel2[Anskaffelsespris])),"") -> 
D22: =IFERROR(IF($C$8="Manuel","",IF($C$9="Ja",$C$10,$C$4)*Tabel2[[#This Row],[Anskaffelsespris]]/SUM(Tabel2[Anskaffelsespris])),"") ->  | E22: =IFERROR(IF($C$8="Manuel","",IF($C$9="Ja",$C$11,$C$5)*Tabel2[[#This Row],[Anskaffelsespris]]/SUM(Tabel2[Anskaffelsespris])),"") -> 
D23: =IFERROR(IF($C$8="Manuel","",IF($C$9="Ja",$C$10,$C$4)*Tabel2[[#This Row],[Anskaffelsespris]]/SUM(Tabel2[Anskaffelsespris])),"") ->  | E23: =IFERROR(IF($C$8="Manuel","",IF($C$9="Ja",$C$11,$C$5)*Tabel2[[#This Row],[Anskaffelsespris]]/SUM(Tabel2[Anskaffelsespris])),"") -> 
D24: =IFERROR(IF($C$8="Manuel","",IF($C$9="Ja",$C$10,$C$4)*Tabel2[[#This Row],[Anskaffelsespris]]/SUM(Tabel2[Anskaffelsespris])),"") ->  | E24: =IFERROR(IF($C$8="Manuel","",IF($C$9="Ja",$C$11,$C$5)*Tabel2[[#This Row],[Anskaffelsespris]]/SUM(Tabel2[Anskaffelsespris])),"") -> 
D25: =IFERROR(IF($C$8="Manuel","",IF($C$9="Ja",$C$10,$C$4)*Tabel2[[#This Row],[Anskaffelsespris]]/SUM(Tabel2[Anskaffelsespris])),"") ->  | E25: =IFERROR(IF($C$8="Manuel","",IF($C$9="Ja",$C$11,$C$5)*Tabel2[[#This Row],[Anskaffelsespris]]/SUM(Tabel2[Anskaffelsespris])),"") -> 
D26: =IFERROR(IF($C$8="Manuel","",IF($C$9="Ja",$C$10,$C$4)*Tabel2[[#This Row],[Anskaffelsespris]]/SUM(Tabel2[Anskaffelsespris])),"") ->  | E26: =IFERROR(IF($C$8="Manuel","",IF($C$9="Ja",$C$11,$C$5)*Tabel2[[#This Row],[Anskaffelsespris]]/SUM(Tabel2[Anskaffelsespris])),"") -> 
D27: =IFERROR(IF($C$8="Manuel","",IF($C$9="Ja",$C$10,$C$4)*Tabel2[[#This Row],[Anskaffelsespris]]/SUM(Tabel2[Anskaffelsespris])),"") ->  | E27: =IFERROR(IF($C$8="Manuel","",IF($C$9="Ja",$C$11,$C$5)*Tabel2[[#This Row],[Anskaffelsespris]]/SUM(Tabel2[Anskaffelsespris])),"") -> 
D28: =IFERROR(IF($C$8="Manuel","",IF($C$9="Ja",$C$10,$C$4)*Tabel2[[#This Row],[Anskaffelsespris]]/SUM(Tabel2[Anskaffelsespris])),"") ->  | E28: =IFERROR(IF($C$8="Manuel","",IF($C$9="Ja",$C$11,$C$5)*Tabel2[[#This Row],[Anskaffelsespris]]/SUM(Tabel2[Anskaffelsespris])),"") -> 
D29: =IFERROR(IF($C$8="Manuel","",IF($C$9="Ja",$C$10,$C$4)*Tabel2[[#This Row],[Anskaffelsespris]]/SUM(Tabel2[Anskaffelsespris])),"") ->  | E29: =IFERROR(IF($C$8="Manuel","",IF($C$9="Ja",$C$11,$C$5)*Tabel2[[#This Row],[Anskaffelsespris]]/SUM(Tabel2[Anskaffelsespris])),"") -> 
D30: =IFERROR(IF($C$8="Manuel","",IF($C$9="Ja",$C$10,$C$4)*Tabel2[[#This Row],[Anskaffelsespris]]/SUM(Tabel2[Anskaffelsespris])),"") ->  | E30: =IFERROR(IF($C$8="Manuel","",IF($C$9="Ja",$C$11,$C$5)*Tabel2[[#This Row],[Anskaffelsespris]]/SUM(Tabel2[Anskaffelsespris])),"") -> 
D31: =IFERROR(IF($C$8="Manuel","",IF($C$9="Ja",$C$10,$C$4)*Tabel2[[#This Row],[Anskaffelsespris]]/SUM(Tabel2[Anskaffelsespris])),"") ->  | E31: =IFERROR(IF($C$8="Manuel","",IF($C$9="Ja",$C$11,$C$5)*Tabel2[[#This Row],[Anskaffelsespris]]/SUM(Tabel2[Anskaffelsespris])),"") -> 
D32: =IFERROR(IF($C$8="Manuel","",IF($C$9="Ja",$C$10,$C$4)*Tabel2[[#This Row],[Anskaffelsespris]]/SUM(Tabel2[Anskaffelsespris])),"") ->  | E32: =IFERROR(IF($C$8="Manuel","",IF($C$9="Ja",$C$11,$C$5)*Tabel2[[#This Row],[Anskaffelsespris]]/SUM(Tabel2[Anskaffelsespris])),"") -> 
D33: =IFERROR(IF($C$8="Manuel","",IF($C$9="Ja",$C$10,$C$4)*Tabel2[[#This Row],[Anskaffelsespris]]/SUM(Tabel2[Anskaffelsespris])),"") ->  | E33: =IFERROR(IF($C$8="Manuel","",IF($C$9="Ja",$C$11,$C$5)*Tabel2[[#This Row],[Anskaffelsespris]]/SUM(Tabel2[Anskaffelsespris])),"") -> 
D34: =IFERROR(IF($C$8="Manuel","",IF($C$9="Ja",$C$10,$C$4)*Tabel2[[#This Row],[Anskaffelsespris]]/SUM(Tabel2[Anskaffelsespris])),"") ->  | E34: =IFERROR(IF($C$8="Manuel","",IF($C$9="Ja",$C$11,$C$5)*Tabel2[[#This Row],[Anskaffelsespris]]/SUM(Tabel2[Anskaffelsespris])),"") -> 
D35: =IFERROR(IF($C$8="Manuel","",IF($C$9="Ja",$C$10,$C$4)*Tabel2[[#This Row],[Anskaffelsespris]]/SUM(Tabel2[Anskaffelsespris])),"") ->  | E35: =IFERROR(IF($C$8="Manuel","",IF($C$9="Ja",$C$11,$C$5)*Tabel2[[#This Row],[Anskaffelsespris]]/SUM(Tabel2[Anskaffelsespris])),"") -> 
D36: =IFERROR(IF($C$8="Manuel","",IF($C$9="Ja",$C$10,$C$4)*Tabel2[[#This Row],[Anskaffelsespris]]/SUM(Tabel2[Anskaffelsespris])),"") ->  | E36: =IFERROR(IF($C$8="Manuel","",IF($C$9="Ja",$C$11,$C$5)*Tabel2[[#This Row],[Anskaffelsespris]]/SUM(Tabel2[Anskaffelsespris])),"") -> 
D37: =IFERROR(IF($C$8="Manuel","",IF($C$9="Ja",$C$10,$C$4)*Tabel2[[#This Row],[Anskaffelsespris]]/SUM(Tabel2[Anskaffelsespris])),"") ->  | E37: =IFERROR(IF($C$8="Manuel","",IF($C$9="Ja",$C$11,$C$5)*Tabel2[[#This Row],[Anskaffelsespris]]/SUM(Tabel2[Anskaffelsespris])),"") -> 
D38: =IFERROR(IF($C$8="Manuel","",IF($C$9="Ja",$C$10,$C$4)*Tabel2[[#This Row],[Anskaffelsespris]]/SUM(Tabel2[Anskaffelsespris])),"") ->  | E38: =IFERROR(IF($C$8="Manuel","",IF($C$9="Ja",$C$11,$C$5)*Tabel2[[#This Row],[Anskaffelsespris]]/SUM(Tabel2[Anskaffelsespris])),"") -> 
D39: =IFERROR(IF($C$8="Manuel","",IF($C$9="Ja",$C$10,$C$4)*Tabel2[[#This Row],[Anskaffelsespris]]/SUM(Tabel2[Anskaffelsespris])),"") ->  | E39: =IFERROR(IF($C$8="Manuel","",IF($C$9="Ja",$C$11,$C$5)*Tabel2[[#This Row],[Anskaffelsespris]]/SUM(Tabel2[Anskaffelsespris])),"") -> 
D40: =IFERROR(IF($C$8="Manuel","",IF($C$9="Ja",$C$10,$C$4)*Tabel2[[#This Row],[Anskaffelsespris]]/SUM(Tabel2[Anskaffelsespris])),"") ->  | E40: =IFERROR(IF($C$8="Manuel","",IF($C$9="Ja",$C$11,$C$5)*Tabel2[[#This Row],[Anskaffelsespris]]/SUM(Tabel2[Anskaffelsespris])),"") -> 
D41: =IFERROR(IF($C$8="Manuel","",IF($C$9="Ja",$C$10,$C$4)*Tabel2[[#This Row],[Anskaffelsespris]]/SUM(Tabel2[Anskaffelsespris])),"") ->  | E41: =IFERROR(IF($C$8="Manuel","",IF($C$9="Ja",$C$11,$C$5)*Tabel2[[#This Row],[Anskaffelsespris]]/SUM(Tabel2[Anskaffelsespris])),"") -> 
D42: =IFERROR(IF($C$8="Manuel","",IF($C$9="Ja",$C$10,$C$4)*Tabel2[[#This Row],[Anskaffelsespris]]/SUM(Tabel2[Anskaffelsespris])),"") ->  | E42: =IFERROR(IF($C$8="Manuel","",IF($C$9="Ja",$C$11,$C$5)*Tabel2[[#This Row],[Anskaffelsespris]]/SUM(Tabel2[Anskaffelsespris])),"") -> 
D43: =IFERROR(IF($C$8="Manuel","",IF($C$9="Ja",$C$10,$C$4)*Tabel2[[#This Row],[Anskaffelsespris]]/SUM(Tabel2[Anskaffelsespris])),"") ->  | E43: =IFERROR(IF($C$8="Manuel","",IF($C$9="Ja",$C$11,$C$5)*Tabel2[[#This Row],[Anskaffelsespris]]/SUM(Tabel2[Anskaffelsespris])),"") -> 
D44: =IFERROR(IF($C$8="Manuel","",IF($C$9="Ja",$C$10,$C$4)*Tabel2[[#This Row],[Anskaffelsespris]]/SUM(Tabel2[Anskaffelsespris])),"") ->  | E44: =IFERROR(IF($C$8="Manuel","",IF($C$9="Ja",$C$11,$C$5)*Tabel2[[#This Row],[Anskaffelsespris]]/SUM(Tabel2[Anskaffelsespris])),"") -> 
D45: =IFERROR(IF($C$8="Manuel","",IF($C$9="Ja",$C$10,$C$4)*Tabel2[[#This Row],[Anskaffelsespris]]/SUM(Tabel2[Anskaffelsespris])),"") ->  | E45: =IFERROR(IF($C$8="Manuel","",IF($C$9="Ja",$C$11,$C$5)*Tabel2[[#This Row],[Anskaffelsespris]]/SUM(Tabel2[Anskaffelsespris])),"") -> 
D46: =IFERROR(IF($C$8="Manuel","",IF($C$9="Ja",$C$10,$C$4)*Tabel2[[#This Row],[Anskaffelsespris]]/SUM(Tabel2[Anskaffelsespris])),"") ->  | E46: =IFERROR(IF($C$8="Manuel","",IF($C$9="Ja",$C$11,$C$5)*Tabel2[[#This Row],[Anskaffelsespris]]/SUM(Tabel2[Anskaffelsespris])),"") -> 
D47: =IFERROR(IF($C$8="Manuel","",IF($C$9="Ja",$C$10,$C$4)*Tabel2[[#This Row],[Anskaffelsespris]]/SUM(Tabel2[Anskaffelsespris])),"") ->  | E47: =IFERROR(IF($C$8="Manuel","",IF($C$9="Ja",$C$11,$C$5)*Tabel2[[#This Row],[Anskaffelsespris]]/SUM(Tabel2[Anskaffelsespris])),"") -> 
D48: =IFERROR(IF($C$8="Manuel","",IF($C$9="Ja",$C$10,$C$4)*Tabel2[[#This Row],[Anskaffelsespris]]/SUM(Tabel2[Anskaffelsespris])),"") ->  | E48: =IFERROR(IF($C$8="Manuel","",IF($C$9="Ja",$C$11,$C$5)*Tabel2[[#This Row],[Anskaffelsespris]]/SUM(Tabel2[Anskaffelsespris])),"") -> 
D49: =IFERROR(IF($C$8="Manuel","",IF($C$9="Ja",$C$10,$C$4)*Tabel2[[#This Row],[Anskaffelsespris]]/SUM(Tabel2[Anskaffelsespris])),"") ->  | E49: =IFERROR(IF($C$8="Manuel","",IF($C$9="Ja",$C$11,$C$5)*Tabel2[[#This Row],[Anskaffelsespris]]/SUM(Tabel2[Anskaffelsespris])),"") -> 
D50: =IFERROR(IF($C$8="Manuel","",IF($C$9="Ja",$C$10,$C$4)*Tabel2[[#This Row],[Anskaffelsespris]]/SUM(Tabel2[Anskaffelsespris])),"") ->  | E50: =IFERROR(IF($C$8="Manuel","",IF($C$9="Ja",$C$11,$C$5)*Tabel2[[#This Row],[Anskaffelsespris]]/SUM(Tabel2[Anskaffelsespris])),"") -> 
D51: =IFERROR(IF($C$8="Manuel","",IF($C$9="Ja",$C$10,$C$4)*Tabel2[[#This Row],[Anskaffelsespris]]/SUM(Tabel2[Anskaffelsespris])),"") ->  | E51: =IFERROR(IF($C$8="Manuel","",IF($C$9="Ja",$C$11,$C$5)*Tabel2[[#This Row],[Anskaffelsespris]]/SUM(Tabel2[Anskaffelsespris])),"") -> 
D52: =IFERROR(IF($C$8="Manuel","",IF($C$9="Ja",$C$10,$C$4)*Tabel2[[#This Row],[Anskaffelsespris]]/SUM(Tabel2[Anskaffelsespris])),"") ->  | E52: =IFERROR(IF($C$8="Manuel","",IF($C$9="Ja",$C$11,$C$5)*Tabel2[[#This Row],[Anskaffelsespris]]/SUM(Tabel2[Anskaffelsespris])),"") -> 
D53: =IFERROR(IF($C$8="Manuel","",IF($C$9="Ja",$C$10,$C$4)*Tabel2[[#This Row],[Anskaffelsespris]]/SUM(Tabel2[Anskaffelsespris])),"") ->  | E53: =IFERROR(IF($C$8="Manuel","",IF($C$9="Ja",$C$11,$C$5)*Tabel2[[#This Row],[Anskaffelsespris]]/SUM(Tabel2[Anskaffelsespris])),"") -> 
D54: =IFERROR(IF($C$8="Manuel","",IF($C$9="Ja",$C$10,$C$4)*Tabel2[[#This Row],[Anskaffelsespris]]/SUM(Tabel2[Anskaffelsespris])),"") ->  | E54: =IFERROR(IF($C$8="Manuel","",IF($C$9="Ja",$C$11,$C$5)*Tabel2[[#This Row],[Anskaffelsespris]]/SUM(Tabel2[Anskaffelsespris])),"") -> 
D55: =IFERROR(IF($C$8="Manuel","",IF($C$9="Ja",$C$10,$C$4)*Tabel2[[#This Row],[Anskaffelsespris]]/SUM(Tabel2[Anskaffelsespris])),"") ->  | E55: =IFERROR(IF($C$8="Manuel","",IF($C$9="Ja",$C$11,$C$5)*Tabel2[[#This Row],[Anskaffelsespris]]/SUM(Tabel2[Anskaffelsespris])),"") -> 
D56: =IFERROR(IF($C$8="Manuel","",IF($C$9="Ja",$C$10,$C$4)*Tabel2[[#This Row],[Anskaffelsespris]]/SUM(Tabel2[Anskaffelsespris])),"") ->  | E56: =IFERROR(IF($C$8="Manuel","",IF($C$9="Ja",$C$11,$C$5)*Tabel2[[#This Row],[Anskaffelsespris]]/SUM(Tabel2[Anskaffelsespris])),"") -> 
D57: =IFERROR(IF($C$8="Manuel","",IF($C$9="Ja",$C$10,$C$4)*Tabel2[[#This Row],[Anskaffelsespris]]/SUM(Tabel2[Anskaffelsespris])),"") ->  | E57: =IFERROR(IF($C$8="Manuel","",IF($C$9="Ja",$C$11,$C$5)*Tabel2[[#This Row],[Anskaffelsespris]]/SUM(Tabel2[Anskaffelsespris])),"") -> 
D58: =IFERROR(IF($C$8="Manuel","",IF($C$9="Ja",$C$10,$C$4)*Tabel2[[#This Row],[Anskaffelsespris]]/SUM(Tabel2[Anskaffelsespris])),"") ->  | E58: =IFERROR(IF($C$8="Manuel","",IF($C$9="Ja",$C$11,$C$5)*Tabel2[[#This Row],[Anskaffelsespris]]/SUM(Tabel2[Anskaffelsespris])),"") -> 
D59: =IFERROR(IF($C$8="Manuel","",IF($C$9="Ja",$C$10,$C$4)*Tabel2[[#This Row],[Anskaffelsespris]]/SUM(Tabel2[Anskaffelsespris])),"") ->  | E59: =IFERROR(IF($C$8="Manuel","",IF($C$9="Ja",$C$11,$C$5)*Tabel2[[#This Row],[Anskaffelsespris]]/SUM(Tabel2[Anskaffelsespris])),"") -> 
D60: =IFERROR(IF($C$8="Manuel","",IF($C$9="Ja",$C$10,$C$4)*Tabel2[[#This Row],[Anskaffelsespris]]/SUM(Tabel2[Anskaffelsespris])),"") ->  | E60: =IFERROR(IF($C$8="Manuel","",IF($C$9="Ja",$C$11,$C$5)*Tabel2[[#This Row],[Anskaffelsespris]]/SUM(Tabel2[Anskaffelsespris])),"") -> 
D61: =IFERROR(IF($C$8="Manuel","",IF($C$9="Ja",$C$10,$C$4)*Tabel2[[#This Row],[Anskaffelsespris]]/SUM(Tabel2[Anskaffelsespris])),"") ->  | E61: =IFERROR(IF($C$8="Manuel","",IF($C$9="Ja",$C$11,$C$5)*Tabel2[[#This Row],[Anskaffelsespris]]/SUM(Tabel2[Anskaffelsespris])),"") -> 
D62: =IFERROR(IF($C$8="Manuel","",IF($C$9="Ja",$C$10,$C$4)*Tabel2[[#This Row],[Anskaffelsespris]]/SUM(Tabel2[Anskaffelsespris])),"") ->  | E62: =IFERROR(IF($C$8="Manuel","",IF($C$9="Ja",$C$11,$C$5)*Tabel2[[#This Row],[Anskaffelsespris]]/SUM(Tabel2[Anskaffelsespris])),"") -> 
D63: =IFERROR(IF($C$8="Manuel","",IF($C$9="Ja",$C$10,$C$4)*Tabel2[[#This Row],[Anskaffelsespris]]/SUM(Tabel2[Anskaffelsespris])),"") ->  | E63: =IFERROR(IF($C$8="Manuel","",IF($C$9="Ja",$C$11,$C$5)*Tabel2[[#This Row],[Anskaffelsespris]]/SUM(Tabel2[Anskaffelsespris])),"") -> 
D64: =IFERROR(IF($C$8="Manuel","",IF($C$9="Ja",$C$10,$C$4)*Tabel2[[#This Row],[Anskaffelsespris]]/SUM(Tabel2[Anskaffelsespris])),"") ->  | E64: =IFERROR(IF($C$8="Manuel","",IF($C$9="Ja",$C$11,$C$5)*Tabel2[[#This Row],[Anskaffelsespris]]/SUM(Tabel2[Anskaffelsespris])),"") -> 

Sheet Renteomkostninger
B2: Udfyld felter malet grå
B4: Samlede ansøgte finansieringsomkostninger | C4: =SUM(Tabel1[Finansierings-omkostninger]) -> 0
B5: Heraf engangsomkostninger | C5: =SUM(Tabel1[Heraf engangs-omkostninger]) -> 0
B6: Heraf varige tillæg | C6: =C4-C5 -> 0
B7: Samlede restgæld på lån pr. 31-12-2025 | C7: =SUM(Tabel1[Restgæld pr. 31-12-2025]) -> 0
B12: Låneengagement | C12: Aftale ID / Fak.nr. | D12: Restgæld pr. 31-12-2025 | E12: Finansierings-omkostninger | F12: Heraf engangs-omkostninger | G12: Dokumentation | H12: Evt bemærkninger (valgfrit)

Sheet SE EKSEMPLER =>
A1: BREAKER

Sheet Eks. på Fordeling
B2: Udfyld felter
B4: Samlede finansieringsomkostninger i 2025 | C4: ='Eks. på Renteomkostninger'!C4 -> 5640000 | E4: Kontrol af manuel fordeling
B5: heraf engangsomkostninger | C5: ='Eks. på Renteomkostninger'!C5 -> 3250000 | E5: Samlede finansieringsomk. | G5: =IF($C$8="Manuel", IF(ABS(SUM(F$15:F39)-C4)<1,"Afstemt","Der er manuelt fordelt ") &IF(ABS(SUM(F$15:F39)-C4)<1,"",ABS(SUM(F$15:F39)-C4)) &IF(ABS(SUM(F$15:F39)-C4)<1,"",IF((SUM(F$15:F39)-C4)<0," kr. for lidt"," kr. for meget")),"") -> 
B6: Samlede restgæld på lån | C6: ='Eks. på Renteomkostninger'!C7 -> 120000000 | E6: Samlede engangsomk. | G6: =IF($C$8="Manuel", IF(ABS(SUM(G$15:G39)-C5)<1,"Afstemt","Der er manuelt fordelt ") &IF(ABS(SUM(G$15:G39)-C5)<1,"",ABS(SUM(G$15:G39)-C5)) &IF(ABS(SUM(G$15:G39)-C5)<1,"",IF((SUM(G$15:G39)-C5)<0," kr. for lidt"," kr. for meget")),"") -> 
B8: Vælg fordelingsmetode (beregnet/manuel) | C8: Beregnet | E8: Kontrol af restgæld
B9: Nedskalér finansieringsomk. (Ja/Nej) | C9: Nej | E9: Restgæld og anskaffelsespris | G9: =IF(SUM(Tabel23[Anskaffelsespris])-C6>=0,"Afstemt","Restgælden overstiger anskaffelsessum") -> Afstemt
B10: Nedskaleret finansieringsomkostninger | C10: =IF($C$9="Ja",MIN(1,SUM(Tabel23[Anskaffelsespris])/$C$6)*C4,C4) -> 5640000 | E10: Evt. bemærkning
B11: heraf engangsomkostninger | C11: =IF($C$9="Ja",MIN(1,SUM(Tabel23[Anskaffelsespris])/$C$6)*C5,C5) -> 3250000
D13: Beregnet fordeling | F13: Manuel
B14: Tillægstitel | C14: Anskaffelsespris | D14: Finansierings-omkostninger | E14: Heraf engangs-omkostninger | F14: Finansieringsomkostninger | G14: Heraf engangs-omkostninger | H14: Evt. bemærkning (valgfrit)
B15: Seperatkloakering | C15: 10000000 | D15: =IFERROR(IF($C$8="Manuel","",IF($C$9="Ja",$C$10,$C$4)*Tabel23[[#This Row],[Anskaffelsespris]]/SUM(Tabel23[Anskaffelsespris])),"") -> 402857.1429 | E15: =IFERROR(IF($C$8="Manuel","",IF($C$9="Ja",$C$11,$C$5)*Tabel23[[#This Row],[Anskaffelsespris]]/SUM(Tabel23[Anskaffelsespris])),"") -> 232142.8571
B16: Udvidelse | C16: 85000000 | D16: =IFERROR(IF($C$8="Manuel","",IF($C$9="Ja",$C$10,$C$4)*Tabel23[[#This Row],[Anskaffelsespris]]/SUM(Tabel23[Anskaffelsespris])),"") -> 3424285.714 | E16: =IFERROR(IF($C$8="Manuel","",IF($C$9="Ja",$C$11,$C$5)*Tabel23[[#This Row],[Anskaffelsespris]]/SUM(Tabel23[Anskaffelsespris])),"") -> 1973214.286
B17: Nyt renseanlæg | C17: 45000000 | D17: =IFERROR(IF($C$8="Manuel","",IF($C$9="Ja",$C$10,$C$4)*Tabel23[[#This Row],[Anskaffelsespris]]/SUM(Tabel23[Anskaffelsespris])),"") -> 1812857.143 | E17: =IFERROR(IF($C$8="Manuel","",IF($C$9="Ja",$C$11,$C$5)*Tabel23[[#This Row],[Anskaffelsespris]]/SUM(Tabel23[Anskaffelsespris])),"") -> 1044642.857
D18: =IFERROR(IF($C$8="Manuel","",IF($C$9="Ja",$C$10,$C$4)*Tabel23[[#This Row],[Anskaffelsespris]]/SUM(Tabel23[Anskaffelsespris])),"") -> 0 | E18: =IFERROR(IF($C$8="Manuel","",IF($C$9="Ja",$C$11,$C$5)*Tabel23[[#This Row],[Anskaffelsespris]]/SUM(Tabel23[Anskaffelsespris])),"") -> 0
D19: =IFERROR(IF($C$8="Manuel","",IF($C$9="Ja",$C$10,$C$4)*Tabel23[[#This Row],[Anskaffelsespris]]/SUM(Tabel23[Anskaffelsespris])),"") -> 0 | E19: =IFERROR(IF($C$8="Manuel","",IF($C$9="Ja",$C$11,$C$5)*Tabel23[[#This Row],[Anskaffelsespris]]/SUM(Tabel23[Anskaffelsespris])),"") -> 0
D20: =IFERROR(IF($C$8="Manuel","",IF($C$9="Ja",$C$10,$C$4)*Tabel23[[#This Row],[Anskaffelsespris]]/SUM(Tabel23[Anskaffelsespris])),"") -> 0 | E20: =IFERROR(IF($C$8="Manuel","",IF($C$9="Ja",$C$11,$C$5)*Tabel23[[#This Row],[Anskaffelsespris]]/SUM(Tabel23[Anskaffelsespris])),"") -> 0
D21: =IFERROR(IF($C$8="Manuel","",IF($C$9="Ja",$C$10,$C$4)*Tabel23[[#This Row],[Anskaffelsespris]]/SUM(Tabel23[Anskaffelsespris])),"") -> 0 | E21: =IFERROR(IF($C$8="Manuel","",IF($C$9="Ja",$C$11,$C$5)*Tabel23[[#This Row],[Anskaffelsespris]]/SUM(Tabel23[Anskaffelsespris])),"") -> 0
D22: =IFERROR(IF($C$8="Manuel","",IF($C$9="Ja",$C$10,$C$4)*Tabel23[[#This Row],[Anskaffelsespris]]/SUM(Tabel23[Anskaffelsespris])),"") -> 0 | E22: =IFERROR(IF($C$8="Manuel","",IF($C$9="Ja",$C$11,$C$5)*Tabel23[[#This Row],[Anskaffelsespris]]/SUM(Tabel23[Anskaffelsespris])),"") -> 0
D23: =IFERROR(IF($C$8="Manuel","",IF($C$9="Ja",$C$10,$C$4)*Tabel23[[#This Row],[Anskaffelsespris]]/SUM(Tabel23[Anskaffelsespris])),"") -> 0 | E23: =IFERROR(IF($C$8="Manuel","",IF($C$9="Ja",$C$11,$C$5)*Tabel23[[#This Row],[Anskaffelsespris]]/SUM(Tabel23[Anskaffelsespris])),"") -> 0
D24: =IFERROR(IF($C$8="Manuel","",IF($C$9="Ja",$C$10,$C$4)*Tabel23[[#This Row],[Anskaffelsespris]]/SUM(Tabel23[Anskaffelsespris])),"") -> 0 | E24: =IFERROR(IF($C$8="Manuel","",IF($C$9="Ja",$C$11,$C$5)*Tabel23[[#This Row],[Anskaffelsespris]]/SUM(Tabel23[Anskaffelsespris])),"") -> 0
D25: =IFERROR(IF($C$8="Manuel","",IF($C$9="Ja",$C$10,$C$4)*Tabel23[[#This Row],[Anskaffelsespris]]/SUM(Tabel23[Anskaffelsespris])),"") -> 0 | E25: =IFERROR(IF($C$8="Manuel","",IF($C$9="Ja",$C$11,$C$5)*Tabel23[[#This Row],[Anskaffelsespris]]/SUM(Tabel23[Anskaffelsespris])),"") -> 0
D26: =IFERROR(IF($C$8="Manuel","",IF($C$9="Ja",$C$10,$C$4)*Tabel23[[#This Row],[Anskaffelsespris]]/SUM(Tabel23[Anskaffelsespris])),"") -> 0 | E26: =IFERROR(IF($C$8="Manuel","",IF($C$9="Ja",$C$11,$C$5)*Tabel23[[#This Row],[Anskaffelsespris]]/SUM(Tabel23[Anskaffelsespris])),"") -> 0
D27: =IFERROR(IF($C$8="Manuel","",IF($C$9="Ja",$C$10,$C$4)*Tabel23[[#This Row],[Anskaffelsespris]]/SUM(Tabel23[Anskaffelsespris])),"") -> 0 | E27: =IFERROR(IF($C$8="Manuel","",IF($C$9="Ja",$C$11,$C$5)*Tabel23[[#This Row],[Anskaffelsespris]]/SUM(Tabel23[Anskaffelsespris])),"") -> 0
D28: =IFERROR(IF($C$8="Manuel","",IF($C$9="Ja",$C$10,$C$4)*Tabel23[[#This Row],[Anskaffelsespris]]/SUM(Tabel23[Anskaffelsespris])),"") -> 0 | E28: =IFERROR(IF($C$8="Manuel","",IF($C$9="Ja",$C$11,$C$5)*Tabel23[[#This Row],[Anskaffelsespris]]/SUM(Tabel23[Anskaffelsespris])),"") -> 0
D29: =IFERROR(IF($C$8="Manuel","",IF($C$9="Ja",$C$10,$C$4)*Tabel23[[#This Row],[Anskaffelsespris]]/SUM(Tabel23[Anskaffelsespris])),"") -> 0 | E29: =IFERROR(IF($C$8="Manuel","",IF($C$9="Ja",$C$11,$C$5)*Tabel23[[#This Row],[Anskaffelsespris]]/SUM(Tabel23[Anskaffelsespris])),"") -> 0
D30: =IFERROR(IF($C$8="Manuel","",IF($C$9="Ja",$C$10,$C$4)*Tabel23[[#This Row],[Anskaffelsespris]]/SUM(Tabel23[Anskaffelsespris])),"") -> 0 | E30: =IFERROR(IF($C$8="Manuel","",IF($C$9="Ja",$C$11,$C$5)*Tabel23[[#This Row],[Anskaffelsespris]]/SUM(Tabel23[Anskaffelsespris])),"") -> 0
D31: =IFERROR(IF($C$8="Manuel","",IF($C$9="Ja",$C$10,$C$4)*Tabel23[[#This Row],[Anskaffelsespris]]/SUM(Tabel23[Anskaffelsespris])),"") -> 0 | E31: =IFERROR(IF($C$8="Manuel","",IF($C$9="Ja",$C$11,$C$5)*Tabel23[[#This Row],[Anskaffelsespris]]/SUM(Tabel23[Anskaffelsespris])),"") -> 0
D32: =IFERROR(IF($C$8="Manuel","",IF($C$9="Ja",$C$10,$C$4)*Tabel23[[#This Row],[Anskaffelsespris]]/SUM(Tabel23[Anskaffelsespris])),"") -> 0 | E32: =IFERROR(IF($C$8="Manuel","",IF($C$9="Ja",$C$11,$C$5)*Tabel23[[#This Row],[Anskaffelsespris]]/SUM(Tabel23[Anskaffelsespris])),"") -> 0
D33: =IFERROR(IF($C$8="Manuel","",IF($C$9="Ja",$C$10,$C$4)*Tabel23[[#This Row],[Anskaffelsespris]]/SUM(Tabel23[Anskaffelsespris])),"") -> 0 | E33: =IFERROR(IF($C$8="Manuel","",IF($C$9="Ja",$C$11,$C$5)*Tabel23[[#This Row],[Anskaffelsespris]]/SUM(Tabel23[Anskaffelsespris])),"") -> 0
D34: =IFERROR(IF($C$8="Manuel","",IF($C$9="Ja",$C$10,$C$4)*Tabel23[[#This Row],[Anskaffelsespris]]/SUM(Tabel23[Anskaffelsespris])),"") -> 0 | E34: =IFERROR(IF($C$8="Manuel","",IF($C$9="Ja",$C$11,$C$5)*Tabel23[[#This Row],[Anskaffelsespris]]/SUM(Tabel23[Anskaffelsespris])),"") -> 0
D35: =IFERROR(IF($C$8="Manuel","",IF($C$9="Ja",$C$10,$C$4)*Tabel23[[#This Row],[Anskaffelsespris]]/SUM(Tabel23[Anskaffelsespris])),"") -> 0 | E35: =IFERROR(IF($C$8="Manuel","",IF($C$9="Ja",$C$11,$C$5)*Tabel23[[#This Row],[Anskaffelsespris]]/SUM(Tabel23[Anskaffelsespris])),"") -> 0
D36: =IFERROR(IF($C$8="Manuel","",IF($C$9="Ja",$C$10,$C$4)*Tabel23[[#This Row],[Anskaffelsespris]]/SUM(Tabel23[Anskaffelsespris])),"") -> 0 | E36: =IFERROR(IF($C$8="Manuel","",IF($C$9="Ja",$C$11,$C$5)*Tabel23[[#This Row],[Anskaffelsespris]]/SUM(Tabel23[Anskaffelsespris])),"") -> 0
D37: =IFERROR(IF($C$8="Manuel","",IF($C$9="Ja",$C$10,$C$4)*Tabel23[[#This Row],[Anskaffelsespris]]/SUM(Tabel23[Anskaffelsespris])),"") -> 0 | E37: =IFERROR(IF($C$8="Manuel","",IF($C$9="Ja",$C$11,$C$5)*Tabel23[[#This Row],[Anskaffelsespris]]/SUM(Tabel23[Anskaffelsespris])),"") -> 0
D38: =IFERROR(IF($C$8="Manuel","",IF($C$9="Ja",$C$10,$C$4)*Tabel23[[#This Row],[Anskaffelsespris]]/SUM(Tabel23[Anskaffelsespris])),"") -> 0 | E38: =IFERROR(IF($C$8="Manuel","",IF($C$9="Ja",$C$11,$C$5)*Tabel23[[#This Row],[Anskaffelsespris]]/SUM(Tabel23[Anskaffelsespris])),"") -> 0
D39: =IFERROR(IF($C$8="Manuel","",IF($C$9="Ja",$C$10,$C$4)*Tabel23[[#This Row],[Anskaffelsespris]]/SUM(Tabel23[Anskaffelsespris])),"") -> 0 | E39: =IFERROR(IF($C$8="Manuel","",IF($C$9="Ja",$C$11,$C$5)*Tabel23[[#This Row],[Anskaffelsespris]]/SUM(Tabel23[Anskaffelsespris])),"") -> 0

Sheet Eks. på Renteomkostninger
B2: Udfyld felter malet grå
B4: Samlede ansøgte finansieringsomkostninger | C4: =SUM(Tabel14[Finansierings-omkostninger]) -> 5640000
B5: Heraf engangsomkostninger | C5: =SUM(Tabel14[Heraf engangs-omkostninger]) -> 3250000
B6: Heraf varige tillæg | C6: =C4-C5 -> 2390000
B7: Samlede restgæld på lån pr. 31-12-2025 | C7: =SUM(Tabel14[Restgæld pr. 31-12-2025]) -> 120000000
B12: Låneengagement | C12: Aftale ID / Fak.nr. | D12: Restgæld pr. 31-12-2025 | E12: Finansierings-omkostninger | F12: Heraf engangs-omkostninger | G12: Dokumentation | H12: Evt bemærkninger (valgfrit)
B13: KommuneKredit - Fast | C13: 20YYXXXXX | D13: 50000000 | E13: 1700000 | F13: 0 | G13: Bilag 1 | H13: Årsopgørelse fra KK. Omfatter kun 82 pct. af rentebetalingerne for 2025
B14: KommuneKredit - Variabel | C14: 20YYXXXXX | D14: 10000000 | E14: 370000 | F14: 0 | G14: Bilag 1 | H14: Årsopgørelse fra KK. Omfatter alle rentebetalingerne for 2025
B15: KommuneKredit - Kredit | C15: 20YYXXXXX | D15: 60000000 | E15: 2000000 | F15: 2250000 | G15: Bilag 1 | H15: Årsopgørelse fra KK. Omfatter kun 82 pct. af rentebetalingerne for 2025
B16: Garantiprovision | C16: Fak.nr. XXXXXX | D16: 0 | E16: 570000 | F16: 0 | G16: Bilag 2 | H16: Faktura fra kommune. Provisionssats ½ pct. af restgæld pr. 31.12.2024. Omfatter 95 pct. fak. Beløb
B17: Byggekredit | C17: Fak.nr. XXXXXX | D17: 0 | E17: 1000000 | F17: 1000000 | G17: Bilag 3 | H17: Udtræk fra kreditkonto hvor der sker rentetilskrivning
